bitfinex-derivatives/quotes_ETHF0:USTF0_20250917
["timestamp","ask_amount","ask_price","bid_price","bid_amount"]
[1758089705865,1.04974268,4519.1,4519.0,0.8386]
[1758089706061,1.26554268,4519.1,4519.0,0.8386]
[1758089706266,0.7298,4519.1,4519.0,0.8386]
[1758089707858,0.7298,4519.1,4519.0,0.7111]
[1758089708560,0.4214,4519.1,4518.6,0.3031]
[1758089708769,0.7298,4518.1,4518.0,3.7132]
[1758089708968,1.51400273,4518.1,4518.0,3.7132]
[1758089709463,1.51400273,4518.1,4518.0,0.5054]
[1758089710363,0.7298,4517.7,4517.6,0.5054]
[1758089710567,1.51400273,4517.7,4517.6,0.5054]
[1758089711657,0.125,4517.5,4517.3,0.3031]
[1758089711967,0.125,4518.0,4517.2,3.9189]
[1758089711968,0.2056,4517.3,4517.2,3.9189]
[1758089712961,0.514,4517.3,4517.2,3.9189]
[1758089713563,0.2056,4517.3,4517.2,3.9189]
[1758089713865,0.9548,4517.3,4517.2,3.2078]
[1758089714073,1.43060273,4517.3,4517.2,0.2023]
[1758089714361,0.514,4517.7,4517.6,0.408]
[1758089714557,0.739,4518.0,4517.9,0.408]
[1758089714763,0.739,4518.0,4517.9,0.7111]
[1758089716269,1.73900273,4518.0,4517.9,0.7111]
[1758089716663,1.51400273,4518.0,4517.9,0.7111]
[1758089716858,31.877,4518.7,4518.2,0.408]
[1758089716859,0.3084,4518.3,4518.2,0.408]
[1758089717063,0.2056,4518.6,4518.5,0.8386]
[1758089717464,0.514,4518.6,4518.5,0.8386]
[1758089717667,0.7298,4518.6,4518.5,0.7111]
[1758089719365,0.7298,4518.6,4518.0,0.1275]
[1758089719567,1.51400273,4518.1,4518.0,0.5355]
[1758089720270,1.51400273,4518.1,4518.0,0.8386]
[1758089723574,1.51400273,4518.1,4518.0,0.5054]
[1758089724767,0.3084,4517.8,4517.6,0.3031]
[1758089724972,1.51400273,4517.7,4517.6,0.3031]
[1758089725676,1.51400273,4517.7,4517.1,3.4549]
[1758089725873,0.78420273,4517.4,4517.1,3.2299]
[1758089726081,0.4214,4517.2,4517.1,3.2299]
[1758089726375,0.7298,4517.2,4517.1,3.2078]
[1758089726971,0.7298,4517.2,4517.1,0.7111]
[1758089728179,0.7298,4517.2,4517.1,0.5054]
[1758089729279,0.7298,4517.2,4516.9,0.3271]
[1758089729576,1.64030273,4517.0,4516.9,0.0221]
[1758089731477,1.64030273,4517.0,4516.6,3.2078]
[1758089731777,0.416,4516.0,4515.9,3.9279]
[1758089732085,1.51920273,4516.0,4515.9,3.9279]
[1758089732984,1.51920273,4516.0,4515.9,3.7201]
[1758089733380,1.51920273,4516.0,4515.9,3.9279]
[1758089733579,0.78420273,4516.0,4515.9,3.9279]
[1758089733784,0.2017,4516.6,4516.5,0.8419]
[1758089734478,0.735,4516.6,4516.5,0.7201]
[1758089734678,0.735,4516.6,4516.5,0.5123]
[1758089736082,0.735,4516.6,4516.5,0.8419]
[1758089736285,1.00920273,4516.9,4516.8,0.4151]
[1758089736581,1.21090273,4516.9,4516.8,0.7201]
[1758089736781,1.74420273,4516.9,4516.8,0.7201]
[1758089740284,1.74420273,4516.9,4516.8,0.5123]
[1758089740886,1.51920273,4516.9,4516.8,0.5123]
[1758089741384,1.51920273,4516.9,4516.8,0.7201]
[1758089742877,1.20020273,4516.9,4516.8,0.7201]
[1758089743284,1.51920273,4516.9,4516.8,0.7201]
[1758089744385,1.20020273,4516.9,4516.8,0.7201]
[1758089744881,1.51920273,4516.9,4516.8,0.7201]
[1758089748698,1.51920273,4516.9,4516.8,0.5123]
[1758089749891,1.51920273,4516.9,4516.8,0.305]
[1758089750493,1.51920273,4516.9,4516.6,0.3271]
[1758089751493,1.51920273,4516.9,4516.8,0.2073]
[1758089751697,0.416,4516.9,4516.8,0.7201]
[1758089751891,1.20020273,4516.9,4516.8,0.7201]
[1758089752096,1.51920273,4516.9,4516.8,0.7201]
[1758089754295,1.51920273,4516.9,4516.6,0.0221]
[1758089757899,1.64979853,4516.7,4516.6,0.0221]
[1758089758295,1.64979853,4516.7,4515.9,3.2078]
[1758089758492,0.3059,4516.6,4516.0,0.3157]
[1758089758697,0.2003,4516.1,4516.0,0.8459]
[1758089758898,0.5062,4516.1,4516.0,0.8459]
[1758089759196,0.7204,4516.6,4516.5,0.2082]
[1758089759396,0.7204,4516.6,4516.5,0.5239]
[1758089759596,0.7204,4516.6,4516.5,0.729]
[1758089760298,0.7204,4516.6,4516.5,0.8459]
[1758089760898,0.94149853,4517.8,4517.2,0.729]
[1758089761103,0.2003,4517.4,4517.3,0.729]
[1758089761291,3.3289,4518.0,4517.3,0.729]
[1758089761292,0.3059,4518.2,4517.3,1.35479853]
[1758089761498,0.5062,4518.5,4518.4,0.2082]
[1758089761798,0.7204,4518.5,4518.4,0.729]
[1758089762107,1.25520266,4518.5,4518.4,0.729]
[1758089762297,0.2003,4518.5,4518.4,0.729]
[1758089762896,0.5062,4518.5,4518.4,0.729]
[1758089763499,0.7204,4518.5,4518.4,0.729]
[1758089766896,0.7204,4518.5,4518.2,0.0221]
[1758089766897,0.8385,4518.5,4518.2,0.0221]
[1758089767106,1.66189853,4518.3,4518.2,0.7511]
[1758089767510,1.66189853,4518.3,4518.2,0.729]
[1758089768105,0.2003,4518.6,4518.5,0.8459]
[1758089769204,0.5062,4518.6,4518.5,0.8459]
[1758089769708,0.4145,4518.6,4518.5,0.8459]
[1758089769908,0.7204,4518.6,4518.5,0.729]
[1758089770112,0.2003,4518.6,4518.5,0.8459]
[1758089770708,4.37329853,4519.0,4518.5,0.5302]
[1758089771010,0.5062,4518.9,4518.8,0.729]
[1758089771205,0.7204,4518.9,4518.8,0.729]
[1758089772518,0.2003,4518.9,4518.8,0.729]
[1758089772809,3.2078,4519.0,4518.9,0.3157]
[1758089773005,0.4243,4519.1,4519.0,0.8459]
[1758089773512,0.7302,4519.1,4519.0,0.8459]
[1758089773712,0.5062,4519.1,4519.0,0.8459]
[1758089775214,1.66189853,4519.1,4518.6,0.3157]
[1758089775814,0.7204,4519.0,4518.9,0.2082]
[1758089776009,0.7204,4519.0,4518.9,0.5239]
[1758089776406,0.8385,4519.0,4518.3,0.0221]
[1758089776614,0.7204,4518.4,4518.3,0.7511]
[1758089777014,0.7204,4518.4,4518.3,0.729]
[1758089777212,0.4145,4518.4,4518.3,0.729]
[1758089777418,0.2003,4518.4,4518.3,0.729]
[1758089781713,0.4145,4518.4,4518.3,0.729]
[1758089781917,1.66189853,4518.4,4518.3,0.729]
[1758089782611,1.35599853,4518.4,4518.3,0.729]
[1758089783617,1.66189853,4518.4,4518.3,0.729]
[1758089785316,0.7204,4518.4,4518.3,0.729]
[1758089786225,0.4145,4518.4,4518.3,0.729]
[1758089786427,0.2003,4518.4,4518.3,0.729]
[1758089788326,0.7096,4518.4,4518.3,0.729]
[1758089792719,0.7096,4518.4,4518.3,0.5239]
[1758089792922,0.3009,4518.3,4518.2,3.5044]
[1758089793127,0.7139,4518.3,4518.2,3.7062]
[1758089793330,0.7139,4518.3,4518.2,3.908]
[1758089795223,0.7139,4518.3,4518.1,0.224]
[1758089795426,0.413,4518.1,4518.0,0.4984]
[1758089795620,0.7139,4518.1,4518.0,0.7002]
[1758089795826,0.7139,4518.1,4518.0,0.8181]
[1758089796025,0.413,4518.1,4518.0,0.8181]
[1758089796227,0.94149853,4518.6,4518.5,0.1179]
[1758089796428,1.44699853,4518.6,4518.5,0.8181]
[1758089796930,1.65539853,4518.6,4518.5,0.4984]
[1758089797729,1.65539853,4518.6,4518.5,0.7002]
[1758089798026,0.7295,4518.9,4518.8,0.4036]
[1758089798226,0.73974371,4518.9,4518.8,0.7002]
[1758089799630,0.2046,4519.1,4519.0,0.1179]
[1758089799833,0.2046,4519.1,4519.0,0.5215]
[1758089800337,1.04064878,4519.1,4519.0,0.8181]
[1758089800836,1.24904878,4519.1,4519.0,0.8181]
[1758089802637,0.73974878,4519.1,4519.0,0.8181]
[1758089802939,0.73974878,4519.1,4518.0,0.1179]
[1758089802940,0.1231,4518.5,4518.0,0.1179]
[1758089803239,0.7139,4518.1,4518.0,0.8181]
[1758089803628,0.2046,4518.1,4518.0,0.8181]
[1758089804032,0.5055,4518.4,4518.3,0.4036]
[1758089804229,0.5055,4518.4,4518.3,0.7002]
[1758089804828,0.2046,4518.6,4518.5,0.1179]
[1758089805042,0.2046,4518.6,4518.5,0.5215]
[1758089805233,0.7139,4518.6,4518.5,0.5215]
[1758089805634,0.7139,4518.6,4518.5,0.8181]
[1758089806031,0.413,4518.6,4518.1,3.2078]
[1758089806237,0.7139,4518.3,4518.2,0.7002]
[1758089806437,0.413,4518.3,4518.2,0.7002]
[1758089807337,0.7139,4518.3,4518.2,0.7002]
[1758089807637,0.7139,4518.3,4518.2,0.4984]
[1758089808542,0.7139,4518.3,4518.2,0.7002]
[1758089813954,0.1231,4519.0,4518.2,0.7002]
[1758089814149,0.1231,4519.0,4518.3,0.7002]
[1758089814150,0.7139,4518.4,4518.3,0.7002]
[1758089816155,0.7139,4518.4,4518.3,0.4984]
[1758089816553,3.5235,4519.1,4518.4,0.2962]
[1758089816754,1.26692693,4519.0,4518.9,0.715]
[1758089820253,0.95122693,4519.0,4518.9,0.715]
[1758089820460,0.74152693,4519.0,4518.9,0.715]
[1758089820952,1.38922693,4519.0,4518.9,0.5028]
[1758089821349,1.26882693,4519.0,4518.9,0.5028]
[1758089821549,2.05243053,4519.0,4518.9,0.712]
[1758089822364,2.17283053,4519.0,4518.7,0.343]
[1758089822555,1.6379036,4519.0,4518.7,0.0221]
[1758089823660,1.6379036,4519.0,4518.7,0.343]
[1758089824460,1.6379036,4519.0,4518.7,0.0221]
[1758089824858,0.53487162,4518.9,4518.7,0.0221]
[1758089825056,0.956,4518.8,4518.7,0.0221]
[1758089825458,0.3137,4518.7,4518.2,0.3209]
[1758089825667,0.732,4518.3,4518.2,0.7278]
[1758089828164,1.0973036,4518.7,4518.2,0.4069]
[1758089828362,0.2047,4518.6,4518.5,0.8471]
[1758089828771,0.5184,4518.6,4518.5,0.8471]
[1758089829362,0.732,4518.6,4518.5,0.8471]
[1758089830163,0.4183,4518.6,4518.5,0.8471]
[1758089830371,0.2047,4518.6,4518.5,0.8471]
[1758089833067,1.3020036,4519.0,4518.9,0.4069]
[1758089833268,1.83694866,4519.0,4518.9,0.7278]
[1758089833571,2.05054866,4519.0,4518.9,0.7278]
[1758089833968,2.17094866,4519.0,4518.6,0.3209]
[1758089834270,1.5156036,4518.6,4518.5,0.6379]
[1758089834876,1.5156036,4518.6,4518.5,0.5186]
[1758089835875,1.5156036,4518.6,4518.5,0.7278]
[1758089837170,1.0973036,4518.9,4518.6,0.3209]
[1758089837474,1.0973036,4518.9,4518.8,0.7278]
[1758089837475,1.5260036,4518.9,4518.8,0.7278]
[1758089837772,1.26705372,4518.9,4518.8,0.7278]
[1758089839871,2.05065732,4518.9,4518.8,0.7278]
[1758089840067,2.05065732,4518.9,4518.8,0.5186]
[1758089840275,2.05065732,4518.9,4518.5,0.4402]
[1758089840472,0.732,4518.6,4518.5,0.6379]
[1758089840672,0.732,4518.6,4518.5,0.8471]
[1758089842074,0.732,4518.6,4518.5,0.7278]
[1758089842075,1.5156036,4518.6,4518.5,0.7278]
[1758089844181,1.5156036,4518.6,4518.5,0.5186]
[1758089848479,1.5156036,4518.6,4518.3,0.0221]
[1758089848480,0.4034,4518.4,4518.3,0.0221]
[1758089848683,0.7148,4518.4,4518.3,0.0221]
[1758089848884,0.4034,4518.4,4518.1,3.2078]
[1758089849076,0.1289,4518.5,4518.1,3.5047]
[1758089849077,1.1870036,4518.3,4518.1,3.5047]
[1758089849276,0.7148,4518.2,4518.1,3.5047]
[1758089849480,0.7148,4518.2,4518.1,3.7063]
[1758089851584,0.7148,4518.2,4518.1,3.9038]
[1758089853687,0.7148,4518.2,4518.1,0.696]
[1758089858589,0.7148,4518.2,4517.9,0.0221]
[1758089858795,0.7836036,4518.3,4517.9,0.0221]
[1758089858796,1.6273036,4518.0,4517.9,0.0221]
[1758089859189,1.6273036,4518.0,4517.7,0.2969]
[1758089860992,1.6273036,4518.0,4517.2,0.2969]
[1758089861305,1.4984036,4517.3,4517.2,0.696]
[1758089862396,1.4984036,4517.3,4517.2,0.4985]
[1758089862893,0.7148,4517.1,4517.0,3.5047]
[1758089863195,0.7148,4517.1,4517.0,0.0221]
[1758089863497,0.9388,4517.1,4517.0,0.0221]
[1758089864894,1.4984036,4517.1,4517.0,0.0221]
[1758089865091,1.4984036,4517.1,4517.0,0.319]
[1758089865394,1.7224036,4517.1,4517.0,0.319]
[1758089865588,1.7224036,4517.1,4517.0,0.0221]
[1758089866799,0.7148,4516.5,4516.4,0.4985]
[1758089866996,0.7148,4516.5,4516.4,0.696]
[1758089868194,0.5072,4516.7,4516.6,0.696]
[1758089868388,0.1958,4516.7,4516.6,0.696]
[1758089870197,0.4034,4516.7,4516.6,0.696]
[1758089870405,0.7148,4516.7,4516.6,0.2969]
[1758089871003,0.5072,4517.5,4517.4,0.3991]
[1758089871206,0.9388,4517.5,4517.4,0.696]
[1758089872105,1.7224036,4517.5,4517.4,0.696]
[1758089872305,1.7224036,4517.5,4517.4,0.4985]
[1758089874209,0.7148,4517.5,4517.4,0.4985]
[1758089874409,0.9388,4517.5,4517.4,0.4985]
[1758089874613,1.7224036,4517.5,4517.4,0.4985]
[1758089875112,1.4984036,4517.5,4517.4,0.4985]
[1758089875314,1.7224036,4517.5,4517.4,0.4985]
[1758089876312,1.4984036,4517.5,4517.4,0.4985]
[1758089876507,1.7224036,4517.5,4517.4,0.4985]
[1758089878721,1.4984036,4517.5,4517.4,0.4985]
[1758089878918,1.7224036,4517.5,4517.4,0.4985]
[1758089879315,1.8450036,4517.5,4517.1,0.3103]
[1758089879515,1.8450036,4517.5,4517.1,0.5083]
[1758089879516,1.5143036,4517.2,4517.1,0.5083]
[1758089879813,1.7383036,4517.2,4517.1,0.5083]
[1758089880818,0.9547,4517.2,4517.1,0.5083]
[1758089881010,1.7383036,4517.2,4517.1,0.5083]
[1758089881618,1.7383036,4517.2,4517.1,0.7136]
[1758089881819,0.9547,4517.2,4517.1,0.7136]
[1758089884126,0.9547,4517.2,4517.0,0.3103]
[1758089884627,0.9547,4517.2,4517.1,0.198]
[1758089884927,0.9547,4517.2,4517.1,0.5083]
[1758089890230,0.1226,4517.0,4516.9,0.3324]
[1758089890435,1.7943885,4517.0,4516.9,0.0221]
[1758089890640,2.32943504,4517.0,4516.4,3.2078]
[1758089890835,0.4153,4516.5,4516.4,3.6111]
[1758089891035,0.7307,4516.5,4516.4,3.6111]
[1758089891435,0.7307,4516.5,4516.4,3.9214]
[1758089892032,3.2078,4517.2,4517.0,0.5083]
[1758089892033,0.7307,4517.1,4517.0,0.5083]
[1758089892240,1.48993077,4517.1,4517.0,0.7136]
[1758089893037,1.26593077,4517.1,4517.0,0.831]
[1758089893236,3.2078,4517.8,4517.0,8.0388]
[1758089893442,0.5196,4518.3,4518.2,0.7136]
[1758089893641,0.73950726,4518.3,4518.2,0.7136]
[1758089893841,0.53530726,4518.3,4518.2,0.7136]
[1758089894040,3.6578,4519.4,4518.6,0.4033]
[1758089894339,0.53318759,4519.3,4519.2,0.7136]
[1758089894531,0.45,4519.4,4519.3,0.7136]
[1758089894738,0.21085871,4520.5,4520.4,0.4033]
[1758089894934,0.21085871,4520.5,4520.0,0.1174]
[1758089894935,2.21065472,4520.5,4520.0,0.1174]
[1758089895146,0.3154,4520.3,4519.6,0.3103]
[1758089895340,0.7307,4520.3,4520.2,0.198]
[1758089895539,0.7307,4520.3,4520.2,0.5083]
[1758089896246,0.7307,4520.3,4519.5,0.1174]
[1758089896545,1.6717885,4519.8,4519.7,0.7136]
[1758089897537,1.3563885,4519.8,4519.7,0.7136]
[1758089898147,1.6717885,4519.8,4519.7,0.7136]
[1758089898347,1.6717885,4519.8,4519.7,0.198]
[1758089898848,1.6717885,4519.8,4519.7,0.5083]
[1758089899047,0.7307,4519.8,4519.7,0.7136]
[1758089899245,3.4318,4520.1,4519.8,0.3103]
[1758089899446,0.4153,4519.9,4519.8,0.7136]
[1758089899951,0.2042,4519.9,4519.8,0.7136]
[1758089901651,0.5196,4519.9,4519.8,0.7136]
[1758089902351,3.4318,4520.1,4519.8,0.7136]
[1758089902555,3.4318,4520.1,4520.0,0.1174]
[1758089902743,4.1625,4520.1,4520.0,0.831]
[1758089903450,3.8471,4520.1,4519.0,0.1174]
[1758089903748,3.8471,4520.1,4519.2,3.9214]
[1758089903749,0.4153,4519.3,4519.2,3.9214]
[1758089904054,0.2042,4519.3,4519.2,3.9214]
[1758089904648,0.4153,4519.3,4519.2,0.7136]
[1758089904854,0.7307,4519.3,4519.2,0.7136]
[1758089905054,3.412,4519.6,4519.5,0.5207]
[1758089905248,3.636,4519.6,4519.5,0.831]
[1758089905652,3.412,4519.6,4519.5,0.831]
[1758089906255,3.2078,4520.1,4519.6,0.3103]
[1758089906450,4.3530885,4520.1,4520.0,0.831]
[1758089906653,4.5770885,4520.1,4520.0,0.831]
[1758089906854,4.8924885,4520.1,4520.0,0.831]
[1758089907054,5.1035885,4520.1,4520.0,0.831]
[1758089907248,5.1035885,4520.1,4520.0,0.5083]
[1758089907958,4.8795885,4520.1,4520.0,0.5083]
[1758089908153,5.1035885,4520.1,4520.0,0.5083]
[1758089908354,5.1035885,4520.1,4519.5,0.1174]
[1758089908551,0.7205,4519.2,4519.1,3.4111]
[1758089908757,1.6615885,4519.2,4519.1,3.4111]
[1758089909055,1.6615885,4519.2,4519.1,3.6196]
[1758089909260,0.4042,4519.2,4519.1,3.9218]
[1758089909455,1.1650885,4519.5,4519.1,3.9218]
[1758089909657,1.1650885,4519.5,4519.1,3.6196]
[1758089909849,0.208,4519.3,4519.2,0.714]
[1758089910059,0.208,4519.3,4519.2,0.7361]
[1758089911261,0.7205,4519.3,4519.2,0.7361]
[1758089912455,0.7205,4519.3,4519.2,0.5276]
[1758089913653,0.7205,4519.3,4519.2,0.5055]
[1758089918364,0.7205,4519.3,4519.0,0.0221]
[1758089918562,1.6615885,4519.1,4519.0,0.0221]
[1758089919965,5.6615885,4519.1,4519.0,0.0221]
[1758089920164,0.9445,4519.1,4519.0,0.5276]
[1758089920365,1.8855885,4519.1,4519.0,0.5276]
[1758089920663,1.8855885,4519.1,4519.0,0.0221]
[1758089921060,1.8855885,4519.1,4518.5,0.1192]
[1758089921260,3.9283,4518.9,4518.8,0.5055]
[1758089921559,4.1523,4518.9,4518.8,0.5055]
[1758089922961,4.1523,4518.9,4518.8,0.714]
[1758089924066,3.6398,4518.9,4518.8,0.714]
[1758089924861,4.1523,4518.9,4518.8,0.714]
[1758089926081,3.6398,4518.9,4518.8,0.714]
[1758089926284,0.3163,4519.2,4519.0,0.1192]
[1758089926478,0.208,4519.2,4519.1,0.714]
[1758089926679,0.432,4519.2,4519.1,0.714]
[1758089926882,3.5241,4519.5,4519.2,0.3022]
[1758089927081,0.7555046,4519.4,4519.3,0.714]
[1758089927282,0.9635046,4519.4,4519.3,0.714]
[1758089927978,3.2078,4519.5,4519.3,0.4118]
[1758089928181,3.2078,4519.5,4519.4,0.714]
[1758089929084,3.2078,4520.0,4519.5,0.4214]
[1758089929285,3.7321,4520.0,4519.9,0.714]
[1758089929586,3.9561,4520.0,4519.9,0.714]
[1758089929783,4.1523,4520.0,4519.9,0.714]
[1758089930979,3.9283,4520.0,4519.9,0.714]
[1758089931176,4.1523,4520.0,4519.9,0.714]
[1758089933883,3.9283,4520.0,4519.9,0.714]
[1758089934088,4.1523,4520.0,4519.9,0.714]
[1758089934383,3.9283,4520.0,4519.9,0.714]
[1758089934785,4.1523,4520.0,4519.9,0.714]
[1758089935287,4.2697,4520.0,4519.9,0.5055]
[1758089935489,4.1523,4520.0,4519.9,0.714]
[1758089940785,0.4076,4519.3,4519.2,3.7062]
[1758089940991,0.7139,4519.3,4519.2,3.7062]
[1758089941188,0.7139,4519.3,4519.2,0.4984]
[1758089941794,0.7139,4519.3,4518.9,0.2967]
[1758089941990,0.5343,4519.0,4518.9,0.2967]
[1758089942192,0.8406,4519.0,4518.9,0.2967]
[1758089942492,0.8406,4519.0,4518.9,0.4984]
[1758089942688,3.3345,4519.5,4519.0,0.123]
[1758089942891,0.51,4519.9,4519.8,0.1987]
[1758089943195,0.7139,4519.9,4519.8,0.6971]
[1758089943896,1.49722986,4519.9,4519.8,0.6971]
[1758089944092,0.7139,4519.9,4519.8,0.6971]
[1758089944693,0.4277,4519.9,4519.8,0.6971]
[1758089945087,0.9379,4519.9,4519.8,0.6971]
[1758089945996,0.6316,4519.9,4519.8,0.6971]
[1758089946596,0.9379,4519.9,4519.8,0.6971]
[1758089946792,0.9379,4519.9,4519.5,0.123]
[1758089946997,0.9379,4519.9,4519.1,0.224]
[1758089946998,0.7139,4519.3,4519.2,0.4984]
[1758089947194,0.78332986,4519.4,4519.3,0.6971]
[1758089947690,0.98702986,4519.4,4519.3,0.6971]
[1758089947892,1.29332986,4519.4,4519.3,0.6971]
[1758089948492,0.2037,4520.1,4520.0,0.8201]
[1758089948695,3.92835871,4520.5,4520.4,0.4004]
[1758089948992,3.92835871,4520.5,4520.4,0.6971]
[1758089950596,4.71168857,4520.5,4520.4,0.4984]
[1758089950897,5.06238857,4520.5,4520.4,0.4984]
[1758089951194,4.27905871,4520.5,4520.1,0.2967]
[1758089951388,4.27905871,4520.5,4519.8,0.4984]
[1758089951389,0.2037,4519.9,4519.8,0.4984]
[1758089951594,1.19092986,4519.9,4519.7,3.2078]
[1758089951898,0.7139,4519.8,4519.7,3.7062]
[1758089952390,0.3063,4521.2,4520.5,0.4197]
[1758089952593,0.098,4521.7,4521.2,0.2967]
[1758089952794,0.2037,4521.3,4521.2,0.6971]
[1758089952989,0.3063,4521.9,4521.3,0.2967]
[1758089953196,3.3345,4522.5,4522.3,0.6971]
[1758089953197,0.2037,4522.4,4522.3,0.6971]
[1758089953796,0.51,4523.1,4523.0,0.4004]
[1758089953996,0.9379,4523.1,4523.0,0.6971]
[1758089954291,0.3063,4523.7,4523.1,0.2967]
[1758089954494,0.224,4523.4,4523.1,1.48042986]
[1758089954688,0.78332986,4523.9,4523.6,0.6971]
[1758089954689,3.4115,4523.7,4523.6,0.6971]
[1758089955198,3.6154,4523.7,4523.6,0.6971]
[1758089955395,3.9217,4523.7,4523.6,0.6971]
[1758089955589,3.9217,4523.7,4523.6,0.4984]
[1758089955891,3.9217,4523.7,4523.3,0.2967]
[1758089956096,3.9217,4523.7,4523.0,0.123]
[1758089956395,3.9217,4523.7,4522.9,0.2967]
[1758089957491,3.9217,4523.7,4522.8,0.0221]
[1758089958091,0.224,4523.6,4523.0,0.123]
[1758089958294,0.7139,4523.1,4523.0,0.8201]
[1758089958597,0.7139,4523.1,4522.8,0.0221]
[1758089958793,0.4076,4522.9,4522.8,0.2238]
[1758089958997,0.7139,4522.9,4522.8,0.7192]
[1758089959198,0.7139,4522.9,4522.8,0.6971]
[1758089959499,0.7139,4522.5,4522.4,0.6971]
[1758089959999,0.4076,4522.5,4522.4,0.6971]
[1758089966103,0.2037,4522.5,4522.4,0.6971]
[1758089967300,3.5141,4523.0,4522.9,0.6971]
[1758089967503,3.9217,4523.0,4522.9,0.6971]
[1758089968605,3.9217,4523.0,4522.9,0.4984]
[1758089968904,4.0455,4523.0,4522.1,0.3025]
[1758089969103,0.196,4522.2,4522.1,0.62201999]
[1758089969303,0.196,4522.2,4522.1,0.4009]
[1758089969706,0.7186,4522.2,4522.1,0.7034]
[1758089970302,0.7186,4522.2,4522.1,0.5081]
[1758089970507,0.3192,4522.1,4521.9,3.5103]
[1758089970808,0.7186,4522.0,4521.9,3.9112]
[1758089971404,0.5152,4522.4,4522.3,0.7034]
[1758089971602,0.7186,4522.4,4522.0,0.1214]
[1758089971797,0.7186,4521.7,4521.6,0.5081]
[1758089972003,0.5232,4521.5,4521.4,3.2078]
[1758089972202,0.8424,4521.5,4521.0,0.3025]
[1758089972399,0.7186,4520.9,4520.1,0.3025]
[1758089972599,0.9436,4520.9,4520.1,0.3025]
[1758089972806,0.7186,4520.9,4520.1,0.3025]
[1758089973002,0.9436,4520.9,4520.8,0.5081]
[1758089973199,0.7186,4520.9,4520.8,0.7034]
[1758089973601,0.6244,4520.9,4520.8,0.7034]
[1758089973799,0.9436,4520.9,4520.8,0.2056]
[1758089974001,0.6244,4520.9,4520.5,0.1214]
[1758089974302,0.7186,4520.7,4520.6,0.5081]
[1758089975401,0.1238,4520.5,4520.4,3.2078]
[1758089975605,0.7186,4520.5,4520.4,3.7159]
[1758089975809,0.7186,4520.5,4520.4,0.2056]
[1758089976007,0.7186,4520.5,4520.4,0.5081]
[1758089976205,0.8424,4520.5,4520.0,0.1214]
[1758089976412,0.7186,4519.7,4519.6,0.5081]
[1758089976705,0.7186,4519.7,4519.3,3.5103]
[1758089976908,0.3994,4519.5,4519.4,0.7034]
[1758089977108,0.196,4519.5,4519.4,0.7034]
[1758089977306,0.7186,4519.9,4519.8,0.7034]
[1758089978110,0.7186,4519.9,4519.8,0.2056]
[1758089978309,0.3192,4519.8,4519.3,3.2078]
[1758089978510,0.3488,4520.0,4519.3,3.9112]
[1758089978511,0.7186,4519.4,4519.3,3.9112]
[1758089979606,0.7186,4519.4,4519.3,0.7034]
[1758089980409,0.7186,4519.4,4519.1,0.3025]
[1758089981102,0.3192,4519.3,4518.8,0.5275]
[1758089981301,0.196,4518.9,4518.8,0.9284]
[1758089984507,0.3192,4519.2,4518.8,0.9284]
[1758089984714,0.7186,4519.5,4519.4,0.7034]
[1758089985107,0.3994,4519.2,4519.1,0.5081]
[1758089985311,0.7186,4519.2,4519.1,0.7034]
[1758089986212,0.196,4519.2,4519.1,0.7034]
[1758089986811,0.7186,4519.2,4519.1,0.7034]
[1758089987010,0.7186,4519.2,4518.6,0.0221]
[1758089987213,0.3994,4519.2,4518.6,0.0221]
[1758089987408,0.5226,4519.1,4519.0,0.5081]
[1758089987711,0.7186,4519.1,4519.0,0.5081]
[1758089987912,0.7186,4519.1,4519.0,0.8248]
[1758089988114,0.3994,4519.1,4519.0,0.8248]
[1758089990118,0.7186,4519.1,4518.6,0.0221]
[1758089990609,0.196,4519.0,4518.9,0.5081]
[1758089990809,0.7186,4519.0,4518.9,0.5081]
[1758089991208,0.8424,4519.0,4518.9,0.2056]
[1758089991412,1.0674,4519.0,4518.6,0.3246]
[1758089991613,1.0674,4519.0,4518.7,0.3025]
[1758089991812,0.3994,4518.7,4518.6,0.0221]
[1758089992009,0.7186,4518.7,4518.6,0.0221]
[1758089992209,0.7186,4518.7,4518.1,0.3025]
[1758089992414,0.7186,4518.7,4518.6,0.5081]
[1758089993315,0.196,4518.7,4518.6,0.7034]
[1758089993913,0.7186,4518.7,4518.6,0.7034]
[1758089994504,0.7186,4518.7,4518.6,0.5081]
[1758089994710,0.3994,4518.2,4518.1,0.7034]
[1758089994906,0.7186,4518.2,4518.1,0.2056]
[1758089995106,0.3994,4518.2,4518.1,0.5081]
[1758089995614,0.7186,4518.2,4518.1,0.7034]
[1758089996316,0.7186,4518.2,4518.0,3.2078]
[1758089996518,0.4131,4518.0,4517.9,0.0221]
[1758089996709,0.7251,4518.0,4517.9,0.2166]
[1758089996909,0.7251,4518.0,4517.9,0.5173]
[1758089997416,0.7251,4518.0,4517.9,0.7181]
[1758089997606,0.537,4518.4,4518.0,0.1209]
[1758089997806,0.7251,4518.4,4518.3,0.696]
[1758089998011,0.9501,4518.4,4518.3,0.696]
[1758089998210,3.2078,4518.8,4518.3,0.696]
[1758089998515,0.4224,4518.7,4518.6,0.7196]
[1758089998714,0.9479,4518.7,4518.6,0.7196]
[1758089999118,0.225,4518.7,4518.6,0.7196]
[1758089999615,0.4224,4518.7,4518.6,0.7196]
[1758090000012,0.9479,4518.7,4518.6,0.7196]
[1758090000413,0.6306,4518.7,4518.6,0.7196]